[Event "79th LOTTO Polish-ch 2022"]
[Site "Kruszwica"]
[Date "2022.05.12"]
[Round "2.5"]
[White "Teclaf, Pawel"]
[Black "Piorun, Kacper"]
[Result "1-0"]
[ECO "C65"]
[WhiteElo "2537"]
[BlackElo "2635"]
[Annotator "TA"]
[PlyCount "155"]
[EventDate "2022.05.10"]
[EventType "k.o."]
[EventCountry "POL"]
[SourceTitle "playchess.com"]
[Source "ChessBase"]
[SourceQuality "1"]
[TimeControl "40/5400+30:1800+30"]

{[%evp 11,155,6,0,8,4,8,8,13,11,0,8,7,55,17,25,7,8,0,4,0,16,20,22,24,14,10,11,0,0,0,0,0,0,0,0,0,12,0,0,-14,-15,-24,0,0,0,-9,0,0,47,50,66,54,56,55,75,68,73,70,79,69,84,84,95,95,95,92,92,92,109,95,98,98,133,133,146,132,320,220,317,132,132,132,504,151,766,770,661,796,806,0,748,788,747,810,752,682,562,489,1139,1123,1069,1069,1517,661,7208,6644,6179,5197,5856,5446,2639,2188,6031,5921,29972,29974,29972,29971,2841,159,159,159,159,159,159,159,159,159,159,159,159,159,159,159,159,159,159,125,29984,125,29985,29986,29986,29980,29987,29988]} 1. e4 {[%emt 1:25:55]} e5 {[%emt 1:25:54]} 2. Nf3 {[%emt 0:00:28]} Nc6 {[%emt 0:00:28]} 3. Bb5 {[%emt 0:00:28]} Nf6 {[%emt 0:00:30]} 4. d3 {[%emt 0:00:28]} Bc5 {[%emt 0:00:33]} 5. O-O {[%emt 0:00:29]} Nd4 {[%emt 0:00:29]} 6. Nxd4 {[%emt 0:00:28]} Bxd4 {[%emt 0:00:28]} 7. c3 {[%emt 0:00:28] C65: Ruy Lopez: Berlin Defence (3...Nf6), unusual lines and 4 0-0 Bc5.} Bb6 {[%emt 0:00:28]} 8. Na3 {[%emt 0:00:28] 8.Ba4 gains popularity.} c6 {[%emt 0:00:33]} 9. Ba4 {[%emt 0:00:29] The position is equal.} d6 {[%emt 0:00:55]} 10. Bc2 {[%emt 0:01:00]} O-O {[%emt 0:00:57]} 11. Bg5 {[%emt 0:00:29] [#]} d5 $146 {[%emt 0:00:35] Prevents Nc4.} (11... h6 $11 {should be considered.} 12. Bxf6 Qxf6) ({Predecessor:} 11... h6 12. Bh4 g5 13. Bg3 Bg4 14. Qd2 Nh5 15. Nc4 Bc7 16. d4 Qe7 17. Ne3 Bd7 {1-0 (58) So,W (2765)-Navara,D (2738) Saint Louis 2019}) 12. h3 {[%emt 0:01:56]} Be6 {[%emt 0:01:33]} 13. Qe2 {[%emt 0:00:33]} Re8 {[%emt 0:00:42]} 14. exd5 {[%emt 0:01:20]} Bxd5 {[%emt 0:00:29]} 15. Rad1 {[%emt 0:00:46]} Bc7 {[%emt 0:01:05]} ({Don't do} 15... Bxa2 16. b3 $16 (16. Nc4 Bxc4 17. dxc4 Qe7 $11)) 16. Nc4 {[%emt 0:01:09]} h6 {[%emt 0:01:42]} 17. Bh4 {[%emt 0:00:30]} Bxc4 {[%emt 0:00:59]} 18. dxc4 {[%emt 0:00:28]} Qe7 {[%emt 0:00:28]} 19. Bxf6 {[%emt 0:01:02]} Qxf6 {[%emt 0:00:28]} 20. Rd7 {[%emt 0:00:31]} Re7 {[%emt 0:00:40]} 21. Rfd1 {[%emt 0:00:31]} g6 {[%emt 0:00:43]} 22. c5 {[%emt 0:01:03]} Kg7 {[%emt 0:00:29]} 23. Qe4 {[%emt 0:00:42]} Qe6 {[%emt 0:00:42]} 24. Rxe7 {[%emt 0:00:41]} Qxe7 {[%emt 0:00:28]} 25. Bb3 {[%emt 0:00:32]} Rd8 {[%emt 0:00:34]} 26. Rxd8 {[%emt 0:00:28]} Qxd8 $11 {[%mdl 4096] Endgame KQB-KQB} 27. Qc4 {[%emt 0:00:29]} Qe7 {[%emt 0:01:02]} 28. Qb4 {[%emt 0:00:32]} e4 {[%emt 0:00:31]} 29. Kf1 {[%emt 0:00:30]} Qd7 {[%emt 0:00:30]} (29... Qg5 $11) 30. Qxe4 $14 {[%emt 0:00:29]} Qd2 {[%emt 0:00:30]} 31. Qd4+ {[%emt 0:00:32]} Qxd4 {[%emt 0:00:29]} 32. cxd4 {[%emt 0:00:27] KB-KB} Kf6 {[%emt 0:00:29]} 33. g3 {[%emt 0:00:30]} Ke7 {[%emt 0:00:30]} 34. Ke2 {[%emt 0:00:28]} f6 {[%emt 0:00:32]} 35. Bg8 {[%emt 0:00:30]} Ba5 {[%emt 0:00:30]} 36. a3 {[%emt 0:00:30]} Bc7 {[%emt 0:00:28]} 37. b4 {[%emt 0:00:29]} b6 {[%emt 0:00:30]} 38. Kd3 {[%emt 0:00:30]} bxc5 {[%emt 0:00:28]} 39. dxc5 {[%emt 0:00:28]} Be5 {[%emt 0:00:28]} 40. g4 {[%emt 0:00:38]} Bb2 {[%emt 0:00:32]} 41. a4 {[%emt 0:30:29]} Ba3 {[%emt 0:30:29]} 42. Kc4 $1 {[%emt 0:00:29]} Bb2 {[%emt 0:00:34]} 43. b5 {[%emt 0:00:31]} Kd7 $2 {[%emt 0:00:30]} (43... g5 $16 44. b6 (44. bxc6 Kd8 $16) 44... a5) 44. Bh7 $1 $18 {[%emt 0:00:29]} g5 {[%emt 0:00:28]} (44... Ba3 $142 45. Bxg6 Bc1 46. Bf5+ Kc7) 45. Be4 {[%emt 0:00:30]} (45. Bf5+ $1 $18 {and the rest is easy.} Kc7 46. f3) 45... cxb5+ $16 {[%emt 0:00:28]} 46. axb5 {[%emt 0:00:29]} Be5 $2 {[%emt 0:00:34][%mdl 8192]} (46... Ke6 $16 47. Bg6 Ke5) 47. Kd5 $2 {[%emt 0:00:31]} (47. Bc2 $18 {and White stays clearly on top.} Bf4 48. Bf5+ Kc7 49. Bg6) 47... Bf4 $2 {[%emt 0:00:31]} (47... Bh2 $16 48. Bf5+ Kc7) 48. Bf5+ {[%emt 0:00:29]} Kc7 {[%emt 0:00:31]} 49. Ke6 {[%emt 0:00:33]} Be5 {[%emt 0:00:28]} 50. Kd5 $2 {[%emt 0:00:30]} (50. c6 $18 a6 51. bxa6 Kxc6 52. f3) 50... Bc3 $2 {[%emt 0:00:31][%mdl 8192]} (50... Bf4 $11) 51. c6 {[%emt 0:00:32]} Bb2 {[%emt 0:00:29]} 52. f3 {[%emt 0:00:28]} Be5 {[%emt 0:00:31]} 53. Ke6 {[%emt 0:00:28]} Bd4 {[%emt 0:00:31]} 54. Kf7 {[%emt 0:00:29]} a6 {[%emt 0:00:30]} (54... Kd8 $142 55. f4 Be3 56. Kxf6 Bxf4) 55. bxa6 $18 {[%emt 0:00:30]} Kxc6 {[%emt 0:00:28]} 56. Kg6 {[%emt 0:00:31]} Kd6 {[%emt 0:00:27]} 57. Kxh6 {[%emt 0:00:30]} (57. f4 $142 Kd5 58. Kxh6) 57... Ke7 {[%emt 0:00:28]} 58. Kg6 {[%emt 0:00:29]} Be3 {[%emt 0:00:29]} 59. Bc2 {[%emt 0:00:28]} Bd4 {[%emt 0:00:34]} 60. Bb3 {[%emt 0:00:32]} Be3 {[%emt 0:00:28]} 61. Kh5 {[%emt 0:00:29]} Bd4 {[%emt 0:00:32]} 62. h4 {[%emt 0:00:32]} Be3 {[%emt 0:00:32]} 63. hxg5 {[%emt 0:00:28]} fxg5 {[%emt 0:00:28]} 64. Kg6 {[%emt 0:00:32]} Kd6 {[%emt 0:00:30]} 65. a7 $2 {[%emt 0:00:31]} (65. f4 $1 $18 {[%cal Rf4g5] is the precise move to win.} gxf4 66. g5) 65... Bxa7 $16 {[%emt 0:00:28]} 66. Kxg5 {[%emt 0:00:28]} Be3+ {[%emt 0:00:35]} 67. Kf6 {[%emt 0:00:32]} Bd4+ {[%emt 0:00:30]} 68. Kf5 {[%emt 0:00:31]} Ke7 69. f4 {[%emt 0:00:28][%cal Bf3f4,Bf4f5,Bf5f6][%mdl 32] White wants to mate with Kg6.} Be3 {[%emt 0:00:59]} 70. Ke5 {[%emt 0:00:33]} Bc1 {[%emt 0:00:31]} 71. g5 {[%emt 0:00:31]} Bd2 {[%emt 0:00:30]} 72. Kf5 {[%emt 0:00:29]} Kf8 {[%emt 0:00:29]} 73. Kg4 {[%emt 0:00:30] White threatens f5 and mate.} Kg7 {[%emt 0:00:31]} 74. f5 {[%emt 0:00:28] Threatening mate with f6+.} Bc1 $2 {[%emt 0:00:30][%mdl 8192] [#]} (74... Bc3 $16) 75. Bc4 $2 {[%emt 0:00:28]} (75. f6+ $1 {mates} Kh8 76. g6 Bh6 77. Kf5 Bf8 78. Ke6 Bg7 79. fxg7+ (79. Kf7 Bxf6 80. Bc4 Bd4 $11) 79... Kxg7 80. Bc2) 75... Bd2 $2 {[%emt 0:00:29][%mdl 8192] [#]} (75... Bb2 $16) 76. f6+ $1 {[%emt 0:00:30] White mates.} Kg6 {[%emt 0:00:29]} 77. Bd3+ {[%emt 0:00:27]} Kf7 {[%emt 0:00:29]} 78. Kf5 {Weighted Error Value: White=0.43/Black=0.36} 1-0

[Event "79th LOTTO Polish-ch 2022"]
[Site "Kruszwica"]
[Date "2022.05.12"]
[Round "2.5"]
[White "Nasuta, Grzegorz"]
[Black "Kosakowski, Jakub"]
[Result "0-1"]
[ECO "C50"]
[WhiteElo "2511"]
[BlackElo "2435"]
[Annotator "TA"]
[PlyCount "144"]
[EventDate "2022.05.10"]
[EventType "k.o."]
[EventCountry "POL"]
[SourceTitle "playchess.com"]
[Source "ChessBase"]
[SourceQuality "1"]
[TimeControl "40/5400+30:1800+30"]

{[%evp 10,144,11,7,16,7,10,5,14,0,14,8,12,6,11,24,8,3,30,22,44,22,42,25,30,21,46,33,75,61,66,43,45,8,3,8,5,4,8,8,5,0,3,0,75,41,39,9,8,8,8,8,8,0,0,0,0,0,0,0,0,0,0,0,0,0,0,0,0,0,0,0,0,0,0,0,0,-8,0,0,8,0,10,0,0,0,8,8,8,8,65,0,0,0,0,0,29996,8,29996,0,0,-29981,-29982,-29982,-29983,-29983,-29984,-29984,-29983,-29982,-29984,-29983,-29979,-29979,-29980,-29978,-29979,-29981,-29982,-29983,-29984,-29985,-29986,-29985,-29983,-29989,-29990,-29990,-29991,-29991,-29992,-29992,-29993,-29993,-29994,-29997,-29994]} 1. e4 {[%emt 1:25:55]} e5 {[%emt 1:25:55]} 2. Nf3 {[%emt 0:00:28]} Nc6 {[%emt 0:00:28]} 3. Bc4 {[%emt 0:00:29]} Bc5 {[%emt 0:00:29]} 4. O-O {[%emt 0:00:29]} Nf6 {[%emt 0:00:29]} 5. d3 {[%emt 0:00:28][%cal Bd2d3,Bd3d4][%mdl 32]} d6 {[%emt 0:00:28]} 6. c3 {[%emt 0:00:29]} a5 $1 {[%emt 0:00:29][%mdl 4] 6...a5 is a critical line. C54: Giuoco Piano: 4 c3 Nf6, main lines with 5 d4 and 5 d3.} 7. Re1 {[%emt 0:00:29]} O-O {[%emt 0:00:29]} 8. h3 {[%emt 0:00:28]} h6 {[%emt 0:00:29] The position is equal.} 9. Bb5 {[%emt 0:00:29]} Ne7 {[%emt 0:01:07]} 10. d4 {[%emt 0:00:40]} Bb6 {[%emt 0:00:39]} 11. Nbd2 {[%emt 0:00:33][%cal Bb1d2,Bd2f1,Bf1g3][%mdl 32]} c6 {[%emt 0:00:34]} 12. Bd3 {[%emt 0:00:28]} Ng6 {[%emt 0:00:30]} 13. Nf1 {[%emt 0:00:29]} Re8 {[%emt 0:00:35]} 14. Ng3 {[%emt 0:00:29]} Be6 {[%emt 0:00:32]} 15. Be3 {[%emt 0:01:19]} Bc7 {[%emt 0:00:40] [#]} 16. Qc2 $146 {[%emt 0:00:47]} ({Predecessor:} 16. Qd2 Qe7 17. b3 a4 18. b4 b5 19. Rac1 Qd7 20. a3 Red8 21. Bb1 Qe8 22. Qe2 {½-½ (57) Giri,A (2774)-Nakamura,H (2736) Chess.com INT 2021}) 16... a4 {[%emt 0:01:19]} 17. c4 {[%emt 0:00:31]} exd4 {[%emt 0:00:45]} 18. Nxd4 {[%emt 0:00:28]} Nd7 {[%emt 0:00:38][%cal Bf6d7,Bd7c5,Bc5d3][%mdl 32]} 19. f4 {[%emt 0:00:47] And now f5 would win.} ({Don't play} 19. Nxe6 fxe6 20. Be2 Rf8 $11) 19... Nc5 {[%emt 0:00:39]} 20. Nxe6 {[%emt 0:01:32]} fxe6 {[%emt 0:00:39]} 21. e5 {[%emt 0:00:28]} Nxd3 {[%emt 0:00:46]} 22. Qxd3 {[%emt 0:00:29]} Nh4 {[%emt 0:00:29]} 23. exd6 {[%emt 0:00:37]} Qxd6 {[%emt 0:00:29]} (23... Bxd6 {looks sharper.} 24. Rad1 Bb4 25. Qc2 Qe7) 24. Qxd6 {[%emt 0:01:10]} Bxd6 {[%emt 0:00:29]} 25. Ne4 {[%emt 0:00:28]} Bc7 {[%emt 0:00:35]} 26. Rad1 {[%emt 0:00:38]} Rad8 {[%emt 0:00:30]} (26... Nf5 $11 {keeps the balance.}) 27. Rxd8 {[%emt 0:00:33]} (27. Bf2 $5 {[%cal Rf2h4]} Rxd1 28. Rxd1 $14) 27... Rxd8 {[%emt 0:00:40]} 28. Nc5 {[%emt 0:00:28]} (28. Bf2 $5 {[%cal Rf2h4]} Ng6 29. g3 $14) 28... Bb6 $1 {[%emt 0:00:46]} 29. Nxa4 {[%emt 0:01:29]} Bxe3+ {[%emt 0:00:37]} 30. Rxe3 $11 {[%emt 0:00:28][%mdl 4096] Endgame With the idea Re2. KRN-KRN} Rd2 {[%emt 0:00:29] Inhibits Re2.} 31. g3 {[%emt 0:00:47]} Nf5 {[%emt 0:00:28]} 32. Rf3 {[%emt 0:00:28]} b5 {[%emt 0:00:43]} 33. cxb5 {[%emt 0:00:38]} cxb5 {[%emt 0:00:29]} 34. Nc5 {[%emt 0:00:45]} Rxb2 {[%emt 0:00:44]} 35. Nxe6 {[%emt 0:00:28]} Rxa2 {[%emt 0:01:02]} 36. g4 {[%emt 0:00:28]} Nd6 {[%emt 0:00:29]} 37. Rd3 {[%emt 0:00:33]} Ra6 {[%emt 0:00:42]} 38. f5 {[%emt 0:00:36]} b4 {[%emt 0:00:28]} 39. Kf2 {[%emt 0:00:35]} Rb6 {[%emt 0:00:33] [#] Hoping for ...b3.} 40. Nc5 {[%emt 0:00:29]} Rb5 {[%emt 0:00:37]} 41. Nb3 {[%emt 0:30:28]} Ne4+ {[%emt 0:30:38]} 42. Ke3 {[%emt 0:00:29]} Nc3 {[%emt 0:00:38]} 43. Kd4 {[%emt 0:00:34]} Rb8 {[%emt 0:00:38]} 44. Kc4 {[%emt 0:00:29]} Na2 {[%emt 0:00:33]} 45. Rd7 {[%emt 0:00:28]} Rc8+ {[%emt 0:00:28]} 46. Kd4 {[%emt 0:00:34]} Nc3 {[%emt 0:00:31]} 47. Rb7 {[%emt 0:00:30]} Ne2+ {[%emt 0:00:29]} 48. Ke5 {[%emt 0:00:31]} Rc3 {[%emt 0:00:30][%csl LRb3,LRh3]} 49. Rxb4 {[%emt 0:00:29]} Rxh3 {[%emt 0:00:28]} ({Black should try} 49... Re3+ $1 $11 50. Kd5 Rd3+ 51. Ke4 Rxh3) 50. Nc5 {[%emt 0:00:28]} (50. Rb8+ $1 $14 Kf7 51. Rb7+ Kg8 52. Nc5 Re3+ 53. Kd6) 50... Re3+ {[%emt 0:00:30]} 51. Kd6 {[%emt 0:00:31]} Ng3 {[%emt 0:00:34]} 52. Ne6 {[%emt 0:00:31] Rb8+ would kill now.} h5 $2 {[%emt 0:00:28][%mdl 8192]} (52... Ne4+ $11 53. Kc6 Nf2) 53. Rb7 $2 {[%emt 0:00:30]} (53. Rb8+ Kh7 54. Ng5+ Kh6 55. Nf7+ Kh7 56. Rh8#) 53... hxg4 $2 {[%emt 0:00:31][%mdl 8192] [#]} (53... Ne4+ $11 54. Kc6 hxg4) 54. Rxg7+ $2 {[%emt 0:00:30]} (54. Rb8+ $1 {mates} Kh7 55. Ng5+ Kh6 56. Nf7+ Kh7 57. Rh8#) 54... Kh8 {[%emt 0:00:27]} 55. Rg5 {[%emt 0:00:29][%mdl 8192] Black converts the advantage convincingly.} (55. Rf7 $11) 55... Ne4+ {[%emt 0:00:28] Black mates.} 56. Kd5 {[%emt 0:00:32]} Nxg5 {[%emt 0:00:29]} 57. Nxg5 {[%emt 0:00:28] KR-KN} g3 {[%emt 0:00:28]} 58. Kd4 {[%emt 0:00:28]} g2 {[%emt 0:00:29]} 59. Kxe3 {[%emt 0:00:31]} g1=Q+ {[%emt 0:00:30]} 60. Kf4 {[%emt 0:00:28]} Kg7 {[%emt 0:00:28]} 61. Ne4 {[%emt 0:00:28]} Qd4 {[%emt 0:00:29]} 62. Kf3 {[%emt 0:00:28]} Kh6 {[%emt 0:00:28]} 63. Kf4 {[%emt 0:00:29]} Kh5 {[%emt 0:00:28]} 64. Kf3 {[%emt 0:00:29]} Qe5 {[%emt 0:00:28]} 65. Ng3+ {[%emt 0:00:31]} Kg5 {[%emt 0:00:29]} 66. Ne4+ {[%emt 0:00:29]} Kxf5 {[%emt 0:00:28]} 67. Nf2 {[%emt 0:00:28]} Qc3+ {[%emt 0:00:29]} 68. Ke2 {[%emt 0:00:28]} Kf4 {[%emt 0:00:29]} 69. Nd3+ {[%emt 0:00:28]} Ke4 {[%emt 0:00:28]} 70. Nf2+ {[%emt 0:00:27]} Kd4 {[%emt 0:00:28]} 71. Nd1 {[%emt 0:00:31]} Qc2+ {[%emt 0:00:28]} 72. Ke1 {[%emt 0:00:28]} Kd3 {[%emt 0:00:29] Weighted Error Value: White=0.50/Black=0.35} 0-1

[Event "79th LOTTO Polish-ch 2022"]
[Site "Kruszwica"]
[Date "2022.05.12"]
[Round "2.6"]
[White "Piorun, Kacper"]
[Black "Teclaf, Pawel"]
[Result "1-0"]
[ECO "A40"]
[WhiteElo "2635"]
[BlackElo "2537"]
[Annotator "TA"]
[PlyCount "110"]
[EventDate "2022.05.10"]
[EventType "k.o."]
[EventCountry "POL"]
[SourceTitle "playchess.com"]
[Source "ChessBase"]
[SourceQuality "1"]
[TimeControl "40/5400+30:1800+30"]

{[%evp 9,110,30,37,28,55,48,51,54,83,79,77,76,78,76,85,58,72,68,78,74,80,67,105,39,86,75,83,75,113,100,115,120,149,150,135,136,142,135,135,137,137,123,160,160,160,161,161,129,146,134,166,164,236,158,169,154,265,189,175,162,180,164,164,145,145,156,216,143,213,231,506,516,985,743,711,718,2125,1544,2038,1619,1438,717,820,674,29949,12809,5612,624,552,539,29990,29991,29991,29992,29992,29993,29993,29994,29994,29982,29995,29983,29980]} 1. d4 {[%emt 1:26:00]} e6 {[%emt 1:27:02]} 2. c4 {[%emt 0:00:32]} b6 {[%emt 0:00:31]} 3. e4 {[%emt 0:00:31]} Bb7 {[%emt 0:00:31]} 4. Nd2 {[%emt 0:00:31]} Nf6 {[%emt 0:00:41]} 5. Bd3 {[%emt 0:00:32]} Bb4 {[%emt 0:00:34]} 6. Qe2 {[%emt 0:00:45] A40: Unusual replies to 1 d4.} d6 {[%emt 0:00:37] [#]} 7. a3 $146 {[%emt 0:00:36]} ({Predecessor:} 7. Ngf3 c5 8. d5 e5 9. O-O Bxd2 10. Bxd2 Bc8 11. h3 h6 12. Nh4 g5 13. Nf5 Bxf5 14. exf5 {1-0 (24) Sabrowski,U (2127)-Engelhardt,E (1818) Berlin 2009}) 7... Bxd2+ {[%emt 0:00:32]} 8. Bxd2 {[%emt 0:00:31] White is slightly better.} e5 {[%emt 0:00:32]} 9. Nf3 {[%emt 0:00:48]} Nc6 {[%emt 0:00:31]} 10. d5 {[%emt 0:00:33]} Ne7 {[%emt 0:00:31]} 11. b4 {[%emt 0:00:36]} Nd7 {[%emt 0:00:41]} 12. g3 {[%emt 0:00:38]} O-O {[%emt 0:00:44]} 13. Nh4 {[%emt 0:00:31]} c6 {[%emt 0:00:35][%cal Ob6b5]} 14. O-O {[%emt 0:00:33]} a5 {[%emt 0:00:41]} 15. dxc6 {[%emt 0:00:42]} Bxc6 {[%emt 0:00:37]} 16. Ng2 {[%emt 0:00:42]} ({White should play} 16. Bg5 $16) 16... Re8 {[%emt 0:00:36]} (16... f5 $14 {is superior.}) 17. Ne3 {[%emt 0:00:33]} Nf8 {[%emt 0:00:37]} 18. Nd5 {[%emt 0:00:33]} Ne6 {[%emt 0:00:40]} 19. Be3 {[%emt 0:00:31]} Rb8 {[%emt 0:00:38]} 20. f3 {[%emt 0:00:41]} Ba8 {[%emt 0:00:31]} 21. Qf2 {[%emt 0:00:33] White is much more active.} Nd4 {[%emt 0:00:42]} 22. Bxd4 {[%emt 0:00:35]} exd4 {[%emt 0:00:33]} 23. Nxe7+ {[%emt 0:00:36]} Qxe7 {[%emt 0:00:33]} 24. Qxd4 {[%emt 0:00:32]} h5 {[%emt 0:00:30]} 25. h4 {[%emt 0:00:45]} Qc7 {[%emt 0:00:31][%cal Od6d5]} 26. Kg2 {[%emt 0:00:34]} Bc6 {[%emt 0:00:32]} 27. Rfd1 {[%emt 0:00:41]} Red8 {[%emt 0:00:40]} 28. Qe3 {[%emt 0:00:33]} Bd7 {[%emt 0:00:35]} 29. Qg5 {[%emt 0:00:31]} axb4 {[%emt 0:00:34]} 30. axb4 {[%emt 0:00:32]} Be6 {[%emt 0:00:32]} (30... Re8 $142 31. Qd5 (31. Qxh5 $2 Re5 $19) 31... Be6 32. Qxh5 Bxc4) 31. Rac1 {[%emt 0:00:39]} Ra8 {[%emt 0:00:31]} 32. Rc2 {[%emt 0:00:46] Against Ra2} Ra4 {[%emt 0:00:40]} (32... g6 $16 33. Qf6 Re8) 33. Qxh5 {[%emt 0:00:42][%cal Oe4e5] [#] aiming for e5!} Rxb4 {[%emt 0:00:35]} 34. e5 {[%emt 0:00:39]} dxe5 {[%emt 0:00:34] ...e4 is the strong threat.} 35. Qh7+ {[%emt 0:00:31]} Kf8 {[%emt 0:00:31]} 36. Qh8+ {[%emt 0:00:31]} Ke7 {[%emt 0:00:32]} 37. Qxg7 {[%emt 0:00:32]} e4 {[%emt 0:00:39]} (37... Rxc4 $16 38. Qg5+ Kf8 39. Qh6+ (39. Bxc4 Rxd1 40. Bb3 Qd6 $16) 39... Ke7 40. Bxc4 Rxd1) 38. Qg5+ {[%emt 0:00:48]} Kf8 {[%emt 0:00:33]} (38... Ke8 $16 39. fxe4 Qc5) 39. fxe4 $18 {[%emt 0:00:35] Strongly threatening Rcd2. Chess con chili.} Rb3 $2 {[%emt 0:00:36]} (39... Qe7 {keeps fighting.} 40. Qh6+ Kg8) 40. Rcd2 {[%emt 0:00:40]} Ke8 {[%emt 0:00:37]} (40... Ra3 $142 41. e5 Rd7) 41. h5 {[%emt 0:30:37] Threatens to win with Be2.} Qe7 {[%emt 0:30:31]} 42. Qf4 {[%emt 0:00:37]} Kf8 {[%emt 0:00:39]} 43. Bc2 {[%emt 0:00:34][%csl LRb3,LRd8]} Rxd2+ {[%emt 0:00:34]} 44. Rxd2 {[%emt 0:00:31] White wants to mate with Qb8+.} Rb2 {[%emt 0:00:31]} 45. h6 {[%emt 0:00:37]} (45. Qb8+ $142 Kg7 46. Qe5+ Kg8 47. Qxb2) 45... Kg8 {[%emt 0:00:31]} 46. e5 {[%emt 0:00:40]} ({Avoid the trap} 46. Qe5 $2 {[#]} Bh3+ $1 {[%mdl 512]} 47. Kxh3 Qxe5 $19) 46... Qb7+ {[%emt 0:00:31]} 47. Kh2 {[%emt 0:00:32][%cal Rd2d8]} Qe7 {[%emt 0:00:35]} 48. h7+ {[%emt 0:00:35]} (48. Qh4 $142 Qxh4+ 49. gxh4 Rxc2 50. Rxc2) 48... Kh8 {[%emt 0:00:31]} 49. Qd4 {[%emt 0:00:30] Qd8+ would kill now.} Bd7 {[%emt 0:00:33]} 50. e6+ {[%emt 0:00:33] White mates.} f6 {[%emt 0:00:34]} 51. exd7 {[%emt 0:00:32]} Rxc2 52. d8=Q+ {[%emt 0:00:31]} Qxd8 {[%emt 0:01:02]} 53. Qxd8+ {[%emt 0:00:31]} Kxh7 {[%emt 0:00:31]} 54. Rf2 {[%emt 0:00:30]} f5 {[%emt 0:00:33]} 55. Qd6 {[%emt 0:00:32]} Rxf2+ {[%emt 0:00:29] Weighted Error Value: White=0.16 (very precise) /Black=0.32} 1-0

[Event "79th LOTTO Polish-ch 2022"]
[Site "Kruszwica"]
[Date "2022.05.13"]
[Round "3.1"]
[White "Wojtaszek, Radoslaw"]
[Black "Moranda, Wojciech"]
[Result "1/2-1/2"]
[ECO "D41"]
[WhiteElo "2696"]
[BlackElo "2630"]
[Annotator "TA"]
[PlyCount "63"]
[EventDate "2022.05.10"]
[EventType "k.o."]
[EventCountry "POL"]
[SourceTitle "playchess.com"]
[Source "ChessBase"]
[SourceQuality "1"]
[TimeControl "40/5400+30:1800+30"]

{[%evp 14,63,22,22,22,14,19,17,20,0,0,0,14,10,12,0,0,0,31,28,41,27,31,30,49,21,12,14,7,21,16,20,12,15,40,0,0,-107,105,15,14,0,0,0,0,-76,-71,-84,-51,-90,-104,-78]} 1. d4 {[%emt 0:00:02]} Nf6 {[%emt 0:00:15]} 2. c4 {[%emt 0:00:04]} e6 {[%emt 0:00:16]} 3. Nf3 {[%emt 0:00:04]} d5 {[%emt 0:00:20]} 4. Nc3 {[%emt 0:00:05]} c5 {[%emt 0:00:13]} 5. cxd5 {[%emt 0:00:09]} cxd4 {[%emt 0:00:19]} 6. Qxd4 {[%emt 0:00:07]} exd5 {[%emt 0:00:14]} 7. Bg5 {[%emt 0:00:05]} Be7 {[%emt 0:00:21]} 8. e3 {[%emt 0:00:10]} O-O {[%emt 0:00:29] D50: Queen's Gambit Declined: Dutch-Peruvian Gambit.} 9. Be2 {[%emt 0:00:06]} Nc6 {[%emt 0:02:54]} 10. Qd3 {[%emt 0:01:36] Nowadays more popular than 10.Qa4.} h6 {[%emt 0:01:43] The position is equal.} 11. Bh4 {[%emt 0:00:07]} Qb6 {[%emt 0:01:20]} 12. O-O {[%emt 0:00:10]} Rd8 {[%emt 0:00:27]} ({But not} 12... Qxb2 13. Rab1 Qa3 14. Bxf6 (14. Nxd5 Nxd5 15. Qxd5 Bxh4 $11) 14... Bxf6 15. Nxd5 Qxd3 16. Bxd3 $14 (16. Nxf6+ gxf6 17. Bxd3 Rb8 $16)) 13. Rfd1 {[%emt 0:04:35]} Be6 {[%emt 0:11:59]} 14. h3 {[%emt 0:01:19]} a6 {[%emt 0:08:52]} 15. a3 {[%emt 0:04:31]} Rac8 {[%emt 0:18:03]} (15... Qxb2 $2 16. Rdb1 Bf5 17. Rxb2 $18) 16. b4 {[%emt 0:03:26]} Qa7 {[%emt 0:01:49] [#]} 17. Rac1 $146 {[%emt 0:11:41]} ({Predecessor:} 17. Bf1 Qb8 18. Rac1 a5 19. bxa5 Nxa5 20. a4 Nb3 21. Rb1 {½-½ (52) Schleef,H (2278)-Svrsek Jr,R (1929) LSS email 2020}) 17... b5 {[%emt 0:03:09]} 18. Bf1 {[%emt 0:14:32]} Qb6 {[%emt 0:08:13]} 19. Ne2 {[%emt 0:00:16]} g5 {[%emt 0:07:24]} 20. Bg3 {[%emt 0:02:00]} Ne4 {[%emt 0:00:56]} 21. Bh2 {[%emt 0:01:55]} a5 {[%emt 0:01:27]} 22. Ned4 {[%emt 0:11:04]} Nxd4 {[%emt 0:03:16]} 23. Nxd4 {[%emt 0:01:59] And now bxa5 would win.} axb4 {[%emt 0:00:17]} 24. axb4 {[%emt 0:00:41]} Rc4 $1 {[%emt 0:02:59]} 25. f3 {[%emt 0:04:36] [#]} (25. Qb1 $11) 25... Nf6 $2 {[%emt 0:00:15]} (25... Rdc8 $1 $17 {stays on course.} 26. Rc2 (26. Ra1 Nc3) 26... Nc3) 26. Qb1 {[%emt 0:04:18]} ({Don't do} 26. Be5 Nd7 27. Bg3 (27. Nxe6 $2 Nxe5 28. Qe2 fxe6 $19) 27... Bxb4 $14) ({White should play} 26. Rb1 $1 $16) 26... Rxb4 $11 {[%emt 0:01:36]} 27. Qc2 {[%emt 0:00:08] Bc7 is the strong threat.} Rc4 {[%emt 0:05:36]} 28. Bxc4 {[%emt 0:13:33]} dxc4 {[%emt 0:00:13]} 29. Kh1 {[%emt 0:00:39] [#]} (29. Be5 $11 {keeps the balance.}) 29... b4 $1 $17 {[%emt 0:04:24]} 30. Be5 {[%emt 0:02:47]} c3 {[%emt 0:08:40]} 31. Nxe6 {[%emt 0:04:39] [#]} Rxd1+ {[%emt 0:00:38]} 32. Rxd1 {[%emt 0:01:36] Weighted Error Value: White=0.24 (precise) /Black=0.19 (very precise)} 1/2-1/2